[Event "Titled Tuesday Blitz June 13 Late 2023"]
[White "Dominguez Rincon, Miller Duvan"]
[Black "Sarkar, Justin"]
[WhiteFideId "4406583"]
[BlackFideId "2010011"]
[WhiteElo "1986"]
[BlackElo "2151"]
[Result "0-1"]
[Round "4"]
[TimeControl "180+2"]
[Date "2023.06.13"]
[WhiteClock "0:00:00"]
[BlackClock "0:00:19"]
[Board "184"]

1. e4 {[%clk 0:03:00]}  e5 {[%clk 0:02:49]} 2. Nf3 {[%clk 0:02:58]}  Nc6 {[%clk 0:02:49]} 3. Bb5 {[%clk 0:02:57]}  a6 {[%clk 0:02:49]} 4. Ba4 {[%clk 0:02:57]}  Nf6 {[%clk 0:02:48]} 5. O-O {[%clk 0:02:57]}  Nxe4 {[%clk 0:02:47]} 6. d4 {[%clk 0:02:56]}  b5 {[%clk 0:02:46]} 7. Bb3 {[%clk 0:02:56]}  d5 {[%clk 0:02:46]} 8. dxe5 {[%clk 0:02:57]}  Be6 {[%clk 0:02:47]} 9. Nbd2 {[%clk 0:02:54]}  Nc5 {[%clk 0:02:42]} 10. c3 {[%clk 0:02:52]}  d4 {[%clk 0:02:42]} 11. Bxe6 {[%clk 0:02:42]}  Nxe6 {[%clk 0:02:41]} 12. cxd4 {[%clk 0:02:37]}  Ncxd4 {[%clk 0:02:39]} 13. Ne4 {[%clk 0:02:36]}  Be7 {[%clk 0:02:32]} 14. Be3 {[%clk 0:02:33]}  Nf5 {[%clk 0:02:24]} 15. Qe2 {[%clk 0:02:21]}  Nxe3 {[%clk 0:02:17]} 16. Qxe3 {[%clk 0:02:22]}  O-O {[%clk 0:02:16]} 17. Rfd1 {[%clk 0:01:55]}  Qc8 {[%clk 0:02:12]} 18. Nd4 {[%clk 0:01:15]}  Nxd4 {[%clk 0:01:51]} 19. Qxd4 {[%clk 0:01:16]}  Rd8 {[%clk 0:01:47]} 20. Qc3 {[%clk 0:01:06]}  Qb7 {[%clk 0:01:44]} 21. f3 {[%clk 0:00:55]}  Qb6+ {[%clk 0:01:39]} 22. Kh1 {[%clk 0:00:54]}  c5 {[%clk 0:01:37]} 23. f4 {[%clk 0:00:44]}  g6 {[%clk 0:01:32]} 24. Qf3 {[%clk 0:00:27]}  Rxd1+ {[%clk 0:01:25]} 25. Rxd1 {[%clk 0:00:28]}  Rd8 {[%clk 0:01:25]} 26. Rxd8+ {[%clk 0:00:27]}  Qxd8 {[%clk 0:01:25]} 27. h3 {[%clk 0:00:23]}  Qd4 {[%clk 0:01:22]} 28. Qe2 {[%clk 0:00:20]}  c4 {[%clk 0:01:21]} 29. a3 {[%clk 0:00:14]}  a5 {[%clk 0:01:18]} 30. Kh2 {[%clk 0:00:08]}  b4 {[%clk 0:01:17]} 31. axb4 {[%clk 0:00:08]}  axb4 {[%clk 0:01:17]} 32. Qc2 {[%clk 0:00:08]}  b3 {[%clk 0:01:16]} 33. Qe2 {[%clk 0:00:07]}  Kg7 {[%clk 0:01:12]} 34. Kg3 {[%clk 0:00:07]}  Ba3 {[%clk 0:00:46]} 35. Nf6 {[%clk 0:00:05]}  Bxb2 {[%clk 0:00:36]} 36. Qg4 {[%clk 0:00:05]}  Qd3+ {[%clk 0:00:22]} 37. Kh2 {[%clk 0:00:04]}  Qf5 {[%clk 0:00:21]} 38. Qf3 {[%clk 0:00:02]}  Bxe5 {[%clk 0:00:19]} 39. fxe5 {[%clk 0:00:01]}  Qxf3 {[%clk 0:00:19]} 40. gxf3 {[%clk 0:00:00]}  b2 {[%clk 0:00:19]} 0-1


[Site "https://www.chess.com"]

[Event "Titled Tuesday Blitz June 13 Late 2023"]
[White "Celestino, Rafael Teixeira"]
[Black "Eisa Mohmood, Alkhoori"]
[WhiteFideId "2108925"]
[BlackFideId "9316116"]
[WhiteElo "2274"]
[BlackElo "1364"]
[Result "0-1"]
[Round "4"]
[TimeControl "180+2"]
[Date "2023.06.13"]
[WhiteClock "0:00:23"]
[BlackClock "0:00:19"]
[Board "185"]

1. e4 {[%clk 0:03:00]}  c5 {[%clk 0:02:59]} 2. Nf3 {[%clk 0:03:00]}  d6 {[%clk 0:03:00]} 3. d4 {[%clk 0:02:59]}  cxd4 {[%clk 0:03:01]} 4. Nxd4 {[%clk 0:03:00]}  Nf6 {[%clk 0:03:02]} 5. Nc3 {[%clk 0:03:00]}  g6 {[%clk 0:03:02]} 6. Bg5 {[%clk 0:03:01]}  Bg7 {[%clk 0:03:03]} 7. Qd2 {[%clk 0:03:01]}  h6 {[%clk 0:03:04]} 8. Bh4 {[%clk 0:02:59]}  O-O {[%clk 0:03:04]} 9. O-O-O {[%clk 0:02:59]}  Nc6 {[%clk 0:03:04]} 10. Be2 {[%clk 0:02:59]}  Nxd4 {[%clk 0:02:53]} 11. Qxd4 {[%clk 0:02:56]}  Be6 {[%clk 0:02:53]} 12. Qe3 {[%clk 0:02:52]}  Qa5 {[%clk 0:02:49]} 13. a3 {[%clk 0:02:39]}  Rfc8 {[%clk 0:02:46]} 14. f4 {[%clk 0:02:33]}  b5 {[%clk 0:02:16]} 15. Be1 {[%clk 0:02:18]}  b4 {[%clk 0:02:08]} 16. Nd5 {[%clk 0:02:12]}  Nxd5 {[%clk 0:01:24]} 17. exd5 {[%clk 0:02:03]}  Qa4 {[%clk 0:01:02]} 18. Bd3 {[%clk 0:01:21]}  Bxb2+ {[%clk 0:00:29]} 19. Kxb2 {[%clk 0:01:15]}  Qxa3+ {[%clk 0:00:30]} 20. Kb1 {[%clk 0:01:14]}  Bxd5 {[%clk 0:00:30]} 21. Bc4 {[%clk 0:00:40]}  Qxe3 {[%clk 0:00:24]} 22. Bxd5 {[%clk 0:00:40]}  Rab8 {[%clk 0:00:20]} 23. Bd2 {[%clk 0:00:39]}  Qc5 {[%clk 0:00:19]} 24. Bb3 {[%clk 0:00:39]}  a5 {[%clk 0:00:20]} 25. Bc1 {[%clk 0:00:36]}  Ra8 {[%clk 0:00:19]} 26. Rd5 {[%clk 0:00:33]}  Qc6 {[%clk 0:00:18]} 27. Rd2 {[%clk 0:00:28]}  a4 {[%clk 0:00:18]} 28. Ba2 {[%clk 0:00:28]}  Rab8 {[%clk 0:00:19]} 29. Bb2 {[%clk 0:00:27]}  b3 {[%clk 0:00:19]} 30. cxb3 {[%clk 0:00:22]}  axb3 {[%clk 0:00:20]} 31. Rc1 {[%clk 0:00:21]}  bxa2+ {[%clk 0:00:19]} 32. Kxa2 {[%clk 0:00:22]}  Rxb2+ {[%clk 0:00:19]} 33. Rxb2 {[%clk 0:00:21]}  Qxc1 {[%clk 0:00:18]} 34. f5 {[%clk 0:00:22]}  Ra8+ {[%clk 0:00:18]} 35. Kb3 {[%clk 0:00:21]}  Rb8+ {[%clk 0:00:19]} 36. Ka4 {[%clk 0:00:22]}  Qxb2 {[%clk 0:00:19]} 37. fxg6 {[%clk 0:00:23]}  Qb4# {[%clk 0:00:19]} 0-1


[Site "https://www.chess.com"]

[Event "Titled Tuesday Blitz June 13 Late 2023"]
[White "Sanchez, Robert"]
[Black "Wang, Alexander J"]
[WhiteFideId "2034360"]
[BlackFideId "30955270"]
[WhiteElo "1947"]
[BlackElo "2247"]
[Result "1-0"]
[Round "4"]
[TimeControl "180+2"]
[Date "2023.06.13"]
[WhiteClock "0:01:31"]
[BlackClock "0:00:31"]
[Board "188"]

1. e4 {[%clk 0:03:00]}  c5 {[%clk 0:02:56]} 2. d4 {[%clk 0:03:01]}  cxd4 {[%clk 0:02:55]} 3. c3 {[%clk 0:03:01]}  dxc3 {[%clk 0:02:54]} 4. Nxc3 {[%clk 0:03:02]}  d6 {[%clk 0:02:53]} 5. Nf3 {[%clk 0:03:03]}  Nc6 {[%clk 0:02:51]} 6. Bc4 {[%clk 0:03:03]}  e6 {[%clk 0:02:50]} 7. O-O {[%clk 0:03:04]}  Nf6 {[%clk 0:02:46]} 8. Qe2 {[%clk 0:03:04]}  Be7 {[%clk 0:02:46]} 9. Rd1 {[%clk 0:03:05]}  e5 {[%clk 0:02:43]} 10. h3 {[%clk 0:03:05]}  O-O {[%clk 0:02:37]} 11. Bg5 {[%clk 0:03:06]}  a6 {[%clk 0:02:32]} 12. Bxf6 {[%clk 0:03:06]}  Bxf6 {[%clk 0:02:27]} 13. Nd5 {[%clk 0:03:07]}  Be7 {[%clk 0:02:03]} 14. Rac1 {[%clk 0:03:07]}  Be6 {[%clk 0:02:01]} 15. Qd2 {[%clk 0:03:01]}  Bxd5 {[%clk 0:01:51]} 16. Bxd5 {[%clk 0:02:59]}  Rc8 {[%clk 0:01:50]} 17. a3 {[%clk 0:02:49]}  Qd7 {[%clk 0:01:43]} 18. Qe3 {[%clk 0:02:34]}  Kh8 {[%clk 0:01:32]} 19. Bxc6 {[%clk 0:02:33]}  bxc6 {[%clk 0:01:30]} 20. Nxe5 {[%clk 0:02:32]}  Qb7 {[%clk 0:01:31]} 21. Nc4 {[%clk 0:02:27]}  d5 {[%clk 0:01:26]} 22. exd5 {[%clk 0:02:23]}  cxd5 {[%clk 0:01:27]} 23. Ne5 {[%clk 0:02:18]}  h6 {[%clk 0:01:18]} 24. Rxc8 {[%clk 0:02:17]}  Qxc8 {[%clk 0:01:17]} 25. Rxd5 {[%clk 0:02:09]}  Qe6 {[%clk 0:01:14]} 26. Ng6+ {[%clk 0:02:03]}  Qxg6 {[%clk 0:01:01]} 27. Qxe7 {[%clk 0:02:03]}  Rc8 {[%clk 0:00:58]} 28. Rd8+ {[%clk 0:02:03]}  Rxd8 {[%clk 0:00:57]} 29. Qxd8+ {[%clk 0:02:04]}  Kh7 {[%clk 0:00:57]} 30. Qd4 {[%clk 0:02:01]}  Qb1+ {[%clk 0:00:55]} 31. Kh2 {[%clk 0:02:02]}  f6 {[%clk 0:00:55]} 32. f3 {[%clk 0:02:01]}  Qf5 {[%clk 0:00:52]} 33. Qe4 {[%clk 0:02:00]}  Qxe4 {[%clk 0:00:50]} 34. fxe4 {[%clk 0:02:01]}  Kg6 {[%clk 0:00:50]} 35. Kg3 {[%clk 0:02:01]}  Kf7 {[%clk 0:00:50]} 36. Kf4 {[%clk 0:01:59]}  Ke6 {[%clk 0:00:49]} 37. h4 {[%clk 0:01:58]}  g5+ {[%clk 0:00:47]} 38. hxg5 {[%clk 0:01:52]}  hxg5+ {[%clk 0:00:48]} 39. Ke3 {[%clk 0:01:50]}  Ke5 {[%clk 0:00:48]} 40. b4 {[%clk 0:01:45]}  Kd6 {[%clk 0:00:48]} 41. Kd4 {[%clk 0:01:42]}  Kc6 {[%clk 0:00:47]} 42. e5 {[%clk 0:01:41]}  f5 {[%clk 0:00:47]} 43. a4 {[%clk 0:01:38]}  f4 {[%clk 0:00:46]} 44. Ke4 {[%clk 0:01:36]}  Kd7 {[%clk 0:00:31]} 45. Kf5 {[%clk 0:01:31]} 1-0


[Site "https://www.chess.com"]

[Event "Titled Tuesday Blitz June 13 Late 2023"]
[White "Bortnyk, Olexandr"]
[Black "Nakamura, Hikaru"]
[WhiteFideId "14120828"]
[BlackFideId "2016192"]
[WhiteElo "2733"]
[BlackElo "2874"]
[Result "0-1"]
[Round "5"]
[TimeControl "180+2"]
[Date "2023.06.13"]
[WhiteClock "0:00:03"]
[BlackClock "0:01:20"]
[Board "1"]

1. e4 {[%clk 0:03:00]}  c5 {[%clk 0:02:54]} 2. Be2 {[%clk 0:02:53]}  g6 {[%clk 0:02:50]} 3. d3 {[%clk 0:02:54]}  Bg7 {[%clk 0:02:50]} 4. f4 {[%clk 0:02:55]}  e6 {[%clk 0:02:50]} 5. Nf3 {[%clk 0:02:55]}  d5 {[%clk 0:02:50]} 6. O-O {[%clk 0:02:54]}  Nc6 {[%clk 0:02:50]} 7. c3 {[%clk 0:02:52]}  dxe4 {[%clk 0:02:45]} 8. dxe4 {[%clk 0:02:51]}  Qxd1 {[%clk 0:02:46]} 9. Rxd1 {[%clk 0:02:44]}  Nf6 {[%clk 0:02:43]} 10. e5 {[%clk 0:02:39]}  Nd5 {[%clk 0:02:44]} 11. c4 {[%clk 0:02:32]}  Ndb4 {[%clk 0:02:43]} 12. Na3 {[%clk 0:02:17]}  b6 {[%clk 0:02:38]} 13. Nb5 {[%clk 0:02:10]}  Ke7 {[%clk 0:02:31]} 14. Bd2 {[%clk 0:01:57]}  Rd8 {[%clk 0:02:16]} 15. a3 {[%clk 0:01:54]}  Nc2 {[%clk 0:02:13]} 16. Rac1 {[%clk 0:01:49]}  N2d4 {[%clk 0:02:13]} 17. Nfxd4 {[%clk 0:01:44]}  Nxd4 {[%clk 0:02:14]} 18. Nxd4 {[%clk 0:01:38]}  Rxd4 {[%clk 0:02:15]} 19. Bf3 {[%clk 0:01:27]}  Rb8 {[%clk 0:02:15]} 20. b4 {[%clk 0:01:24]}  Bb7 {[%clk 0:01:57]} 21. Bxb7 {[%clk 0:01:20]}  Rxb7 {[%clk 0:01:58]} 22. bxc5 {[%clk 0:01:18]}  bxc5 {[%clk 0:01:59]} 23. Be3 {[%clk 0:01:18]}  Rxd1+ {[%clk 0:01:59]} 24. Rxd1 {[%clk 0:01:19]}  Ke8 {[%clk 0:01:59]} 25. Bxc5 {[%clk 0:00:37]}  Rc7 {[%clk 0:01:56]} 26. Bb4 {[%clk 0:00:25]}  Rxc4 {[%clk 0:01:54]} 27. g3 {[%clk 0:00:26]}  g5 {[%clk 0:01:54]} 28. Rf1 {[%clk 0:00:15]}  gxf4 {[%clk 0:01:53]} 29. gxf4 {[%clk 0:00:16]}  Bh6 {[%clk 0:01:44]} 30. f5 {[%clk 0:00:16]}  Rg4+ {[%clk 0:01:43]} 31. Kh1 {[%clk 0:00:17]}  Rf4 {[%clk 0:01:44]} 32. Rxf4 {[%clk 0:00:10]}  Bxf4 {[%clk 0:01:45]} 33. fxe6 {[%clk 0:00:10]}  fxe6 {[%clk 0:01:46]} 34. Kg2 {[%clk 0:00:03]}  Bxe5 {[%clk 0:01:44]} 35. h3 {[%clk 0:00:04]}  Kd7 {[%clk 0:01:44]} 36. Bd2 {[%clk 0:00:03]}  Kc6 {[%clk 0:01:43]} 37. a4 {[%clk 0:00:03]}  Kd5 {[%clk 0:01:42]} 38. Kf3 {[%clk 0:00:03]}  h5 {[%clk 0:01:39]} 39. Ke3 {[%clk 0:00:03]}  Bg7 {[%clk 0:01:35]} 40. Kd3 {[%clk 0:00:03]}  e5 {[%clk 0:01:35]} 41. Be1 {[%clk 0:00:02]}  a6 {[%clk 0:01:33]} 42. Bd2 {[%clk 0:00:02]}  e4+ {[%clk 0:01:32]} 43. Ke2 {[%clk 0:00:02]}  Bd4 {[%clk 0:01:33]} 44. Be1 {[%clk 0:00:03]}  Kc4 {[%clk 0:01:33]} 45. a5 {[%clk 0:00:01]}  Bc3 {[%clk 0:01:16]} 46. Bxc3 {[%clk 0:00:01]}  Kxc3 {[%clk 0:01:17]} 47. Ke3 {[%clk 0:00:01]}  Kb4 {[%clk 0:01:18]} 48. Kxe4 {[%clk 0:00:01]}  Kxa5 {[%clk 0:01:19]} 49. Kd3 {[%clk 0:00:02]}  Kb4 {[%clk 0:01:19]} 50. Kc2 {[%clk 0:00:02]}  Kc4 {[%clk 0:01:20]} 51. h4 {[%clk 0:00:03]}  Kd4 {[%clk 0:01:20]} 52. Kb3 {[%clk 0:00:03]}  Ke4 {[%clk 0:01:20]} 0-1


[Site "https://www.chess.com"]

[Event "Titled Tuesday Blitz June 13 Late 2023"]
[White "Erdogmus, Yagiz Kaan"]
[Black "Vazquez, Guillermo"]
[WhiteFideId "44599790"]
[BlackFideId "3702308"]
[WhiteElo "2359"]
[BlackElo "2543"]
[Result "0-1"]
[Round "5"]
[TimeControl "180+2"]
[Date "2023.06.13"]
[WhiteClock "0:00:05"]
[BlackClock "0:00:08"]
[Board "6"]

1. e4 {[%clk 0:03:00]}  c6 {[%clk 0:02:58]} 2. d4 {[%clk 0:03:00]}  d5 {[%clk 0:02:59]} 3. exd5 {[%clk 0:03:00]}  cxd5 {[%clk 0:02:58]} 4. Bd3 {[%clk 0:03:01]}  Nc6 {[%clk 0:02:58]} 5. c3 {[%clk 0:03:01]}  Nf6 {[%clk 0:02:58]} 6. Bf4 {[%clk 0:03:01]}  Bg4 {[%clk 0:02:55]} 7. Qb3 {[%clk 0:03:00]}  e5 {[%clk 0:02:55]} 8. h3 {[%clk 0:02:57]}  Na5 {[%clk 0:02:52]} 9. Qc2 {[%clk 0:02:50]}  exf4 {[%clk 0:02:51]} 10. hxg4 {[%clk 0:02:49]}  Nxg4 {[%clk 0:02:51]} 11. Bb5+ {[%clk 0:02:46]}  Nc6 {[%clk 0:02:50]} 12. Rxh7 {[%clk 0:02:42]}  Qe7+ {[%clk 0:02:21]} 13. Be2 {[%clk 0:02:39]}  Rxh7 {[%clk 0:01:42]} 14. Qxh7 {[%clk 0:02:37]}  Nh6 {[%clk 0:01:43]} 15. Qd3 {[%clk 0:02:24]}  O-O-O {[%clk 0:01:39]} 16. Nd2 {[%clk 0:02:24]}  g5 {[%clk 0:01:15]} 17. O-O-O {[%clk 0:02:17]}  g4 {[%clk 0:01:14]} 18. Nf1 {[%clk 0:01:41]}  Kb8 {[%clk 0:01:02]} 19. f3 {[%clk 0:01:37]}  g3 {[%clk 0:00:53]} 20. Qd2 {[%clk 0:01:27]}  Qf6 {[%clk 0:00:54]} 21. Bd3 {[%clk 0:01:25]}  Bd6 {[%clk 0:00:49]} 22. Ne2 {[%clk 0:01:23]}  Ng8 {[%clk 0:00:28]} 23. Kb1 {[%clk 0:01:12]}  Nge7 {[%clk 0:00:29]} 24. Qc1 {[%clk 0:01:12]}  Ng6 {[%clk 0:00:27]} 25. Bxg6 {[%clk 0:01:05]}  fxg6 {[%clk 0:00:27]} 26. Nd2 {[%clk 0:01:04]}  Ne7 {[%clk 0:00:22]} 27. Rh1 {[%clk 0:01:00]}  Nf5 {[%clk 0:00:22]} 28. Nf1 {[%clk 0:01:00]}  Nh4 {[%clk 0:00:19]} 29. Rg1 {[%clk 0:00:49]}  Re8 {[%clk 0:00:18]} 30. Qc2 {[%clk 0:00:45]}  g5 {[%clk 0:00:19]} 31. Kc1 {[%clk 0:00:37]}  a6 {[%clk 0:00:18]} 32. Kd1 {[%clk 0:00:37]}  Nf5 {[%clk 0:00:18]} 33. Qd3 {[%clk 0:00:36]}  Rh8 {[%clk 0:00:16]} 34. b3 {[%clk 0:00:31]}  Qe6 {[%clk 0:00:16]} 35. Nc1 {[%clk 0:00:30]}  Bc7 {[%clk 0:00:15]} 36. Qd2 {[%clk 0:00:29]}  Re8 {[%clk 0:00:13]} 37. Nd3 {[%clk 0:00:28]}  Qd6 {[%clk 0:00:12]} 38. Rh1 {[%clk 0:00:26]}  Qe7 {[%clk 0:00:12]} 39. Qe1 {[%clk 0:00:20]}  Qf7 {[%clk 0:00:08]} 40. Qd2 {[%clk 0:00:20]}  Nh4 {[%clk 0:00:08]} 41. Ne1 {[%clk 0:00:18]}  Qf5 {[%clk 0:00:08]} 42. Kc1 {[%clk 0:00:17]}  Bd6 {[%clk 0:00:08]} 43. Qd1 {[%clk 0:00:17]}  Re7 {[%clk 0:00:07]} 44. Nd2 {[%clk 0:00:17]}  Qd7 {[%clk 0:00:07]} 45. Rg1 {[%clk 0:00:16]}  Qe8 {[%clk 0:00:07]} 46. Nd3 {[%clk 0:00:16]}  Re3 {[%clk 0:00:07]} 47. Kc2 {[%clk 0:00:15]}  Re2 {[%clk 0:00:07]} 48. Nc1 {[%clk 0:00:15]}  Rxg2 {[%clk 0:00:07]} 49. Re1 {[%clk 0:00:13]}  Qf7 {[%clk 0:00:07]} 50. Nd3 {[%clk 0:00:14]}  Ba3 {[%clk 0:00:07]} 51. Re5 {[%clk 0:00:12]}  Nf5 {[%clk 0:00:07]} 52. Ne1 {[%clk 0:00:12]}  Rh2 {[%clk 0:00:06]} 53. Kd3 {[%clk 0:00:09]}  Bd6 {[%clk 0:00:07]} 54. Re2 {[%clk 0:00:09]}  Qg6 {[%clk 0:00:07]} 55. Rxh2 {[%clk 0:00:08]}  gxh2 {[%clk 0:00:07]} 56. Ke2 {[%clk 0:00:09]}  Ng3+ {[%clk 0:00:07]} 57. Kf2 {[%clk 0:00:05]}  h1=Q {[%clk 0:00:08]} 0-1


[Site "https://www.chess.com"]

[Event "Titled Tuesday Blitz June 13 Late 2023"]
[White "Kovalev, Vladislav"]
[Black "Firouzja, Alireza"]
[WhiteFideId "13504398"]
[BlackFideId "12573981"]
[WhiteElo "2555"]
[BlackElo "2896"]
[Result "1-0"]
[Round "5"]
[TimeControl "180+2"]
[Date "2023.06.13"]
[WhiteClock "0:00:10"]
[BlackClock "0:00:03"]
[Board "8"]

1. e4 {[%clk 0:03:00]}  c6 {[%clk 0:02:59]} 2. Nf3 {[%clk 0:03:00]}  d5 {[%clk 0:02:59]} 3. d3 {[%clk 0:03:01]}  Bg4 {[%clk 0:02:57]} 4. Nbd2 {[%clk 0:03:01]}  e6 {[%clk 0:02:52]} 5. h3 {[%clk 0:03:01]}  Bh5 {[%clk 0:02:52]} 6. g4 {[%clk 0:03:02]}  Bg6 {[%clk 0:02:52]} 7. h4 {[%clk 0:03:02]}  h5 {[%clk 0:02:51]} 8. Ne5 {[%clk 0:02:57]}  Bh7 {[%clk 0:02:51]} 9. g5 {[%clk 0:02:32]}  Bd6 {[%clk 0:02:51]} 10. g6 {[%clk 0:02:12]}  fxg6 {[%clk 0:02:40]} 11. Ndf3 {[%clk 0:02:04]}  Qc7 {[%clk 0:02:31]} 12. d4 {[%clk 0:01:39]}  Ne7 {[%clk 0:02:12]} 13. Ng5 {[%clk 0:01:13]}  Bxe5 {[%clk 0:02:10]} 14. dxe5 {[%clk 0:01:14]}  Bg8 {[%clk 0:01:50]} 15. Be3 {[%clk 0:00:51]}  Nd7 {[%clk 0:01:48]} 16. f4 {[%clk 0:00:49]}  O-O-O {[%clk 0:01:44]} 17. Qd2 {[%clk 0:00:39]}  dxe4 {[%clk 0:01:25]} 18. O-O-O {[%clk 0:00:38]}  Nb6 {[%clk 0:01:19]} 19. Qxd8+ {[%clk 0:00:28]}  Qxd8 {[%clk 0:01:20]} 20. Rxd8+ {[%clk 0:00:29]}  Kxd8 {[%clk 0:01:20]} 21. Nxe4 {[%clk 0:00:29]}  Nf5 {[%clk 0:01:19]} 22. Bf2 {[%clk 0:00:28]}  Nd5 {[%clk 0:01:13]} 23. Bxa7 {[%clk 0:00:23]}  Bf7 {[%clk 0:01:09]} 24. Ng5 {[%clk 0:00:22]}  Ke8 {[%clk 0:01:09]} 25. Nh3 {[%clk 0:00:10]}  Nxh4 {[%clk 0:01:04]} 26. Bf2 {[%clk 0:00:09]}  Nf5 {[%clk 0:01:04]} 27. Bd3 {[%clk 0:00:09]}  h4 {[%clk 0:01:04]} 28. c4 {[%clk 0:00:08]}  Nb4 {[%clk 0:00:59]} 29. Be4 {[%clk 0:00:07]}  Ng3 {[%clk 0:00:45]} 30. Bxg3 {[%clk 0:00:03]}  hxg3 {[%clk 0:00:45]} 31. a3 {[%clk 0:00:04]}  Nd3+ {[%clk 0:00:36]} 32. Bxd3 {[%clk 0:00:02]}  g2 {[%clk 0:00:37]} 33. Rg1 {[%clk 0:00:03]}  Rxh3 {[%clk 0:00:37]} 34. Be4 {[%clk 0:00:04]}  Rh4 {[%clk 0:00:22]} 35. Kd2 {[%clk 0:00:04]}  Rxf4 {[%clk 0:00:17]} 36. Ke3 {[%clk 0:00:05]}  Rg4 {[%clk 0:00:15]} 37. Rxg2 {[%clk 0:00:05]}  Rxg2 {[%clk 0:00:12]} 38. Bxg2 {[%clk 0:00:06]}  g5 {[%clk 0:00:12]} 39. Be4 {[%clk 0:00:02]}  Bh5 {[%clk 0:00:11]} 40. b4 {[%clk 0:00:02]}  Kd8 {[%clk 0:00:10]} 41. a4 {[%clk 0:00:03]}  Bg4 {[%clk 0:00:10]} 42. a5 {[%clk 0:00:03]}  Kc7 {[%clk 0:00:09]} 43. Kd4 {[%clk 0:00:02]}  Bd1 {[%clk 0:00:07]} 44. b5 {[%clk 0:00:03]}  cxb5 {[%clk 0:00:07]} 45. cxb5 {[%clk 0:00:04]}  g4 {[%clk 0:00:08]} 46. b6+ {[%clk 0:00:04]}  Kb8 {[%clk 0:00:07]} 47. Ke3 {[%clk 0:00:04]}  g5 {[%clk 0:00:06]} 48. Kf2 {[%clk 0:00:04]}  Kc8 {[%clk 0:00:05]} 49. Kg3 {[%clk 0:00:05]}  Bf3 {[%clk 0:00:02]} 50. Bd3 {[%clk 0:00:03]}  Kd7 {[%clk 0:00:02]} 51. Bb5+ {[%clk 0:00:04]}  Kc8 {[%clk 0:00:02]} 52. Bc4 {[%clk 0:00:04]}  Kd7 {[%clk 0:00:02]} 53. Bb5+ {[%clk 0:00:05]}  Kc8 {[%clk 0:00:02]} 54. Ba4 {[%clk 0:00:06]}  Kd8 {[%clk 0:00:03]} 55. Bb3 {[%clk 0:00:05]}  Kd7 {[%clk 0:00:03]} 56. Bc4 {[%clk 0:00:06]}  Ke7 {[%clk 0:00:02]} 57. Bb5 {[%clk 0:00:05]}  Kd8 {[%clk 0:00:02]} 58. Kf2 {[%clk 0:00:04]}  Ke7 {[%clk 0:00:02]} 59. Bc4 {[%clk 0:00:04]}  Kd7 {[%clk 0:00:02]} 60. Bb5+ {[%clk 0:00:04]}  Ke7 {[%clk 0:00:03]} 61. Ba4 {[%clk 0:00:05]}  Kd8 {[%clk 0:00:03]} 62. Bb3 {[%clk 0:00:05]}  Kd7 {[%clk 0:00:03]} 63. Bc4 {[%clk 0:00:06]}  Kc6 {[%clk 0:00:02]} 64. Kg3 {[%clk 0:00:06]}  Kc5 {[%clk 0:00:03]} 65. Bxe6 {[%clk 0:00:07]}  Kb4 {[%clk 0:00:02]} 66. Bxg4 {[%clk 0:00:07]}  Bc6 {[%clk 0:00:02]} 67. a6 {[%clk 0:00:05]}  bxa6 {[%clk 0:00:01]} 68. Bc8 {[%clk 0:00:06]}  Kb5 {[%clk 0:00:01]} 69. b7 {[%clk 0:00:06]}  Bxb7 {[%clk 0:00:01]} 70. Bxb7 {[%clk 0:00:07]}  Kc5 {[%clk 0:00:01]} 71. Kg4 {[%clk 0:00:08]}  a5 {[%clk 0:00:01]} 72. Kxg5 {[%clk 0:00:08]}  a4 {[%clk 0:00:02]} 73. Bc8 {[%clk 0:00:08]}  a3 {[%clk 0:00:02]} 74. Be6 {[%clk 0:00:08]}  Kd4 {[%clk 0:00:02]} 75. Kf5 {[%clk 0:00:08]}  Kc5 {[%clk 0:00:02]} 76. Ba2 {[%clk 0:00:09]}  Kc6 {[%clk 0:00:03]} 77. e6 {[%clk 0:00:10]}  Kd6 {[%clk 0:00:03]} 78. Kf6 {[%clk 0:00:10]} 1-0


[Site "https://www.chess.com"]

[Event "Titled Tuesday Blitz June 13 Late 2023"]
[White "Pap, Gyula"]
[Black "Sarana, Alexey"]
[WhiteFideId "725323"]
[BlackFideId "24133795"]
[WhiteElo "2519"]
[BlackElo "2714"]
[Result "0-1"]
[Round "5"]
[TimeControl "180+2"]
[Date "2023.06.13"]
[WhiteClock "0:00:00"]
[BlackClock "0:00:26"]
[Board "9"]

1. d4 {[%clk 0:02:56]}  Nf6 {[%clk 0:02:59]} 2. c4 {[%clk 0:02:56]}  e6 {[%clk 0:03:00]} 3. Nc3 {[%clk 0:02:57]}  d5 {[%clk 0:03:00]} 4. cxd5 {[%clk 0:02:55]}  exd5 {[%clk 0:03:01]} 5. Bg5 {[%clk 0:02:54]}  Be7 {[%clk 0:03:01]} 6. e3 {[%clk 0:02:54]}  h6 {[%clk 0:03:01]} 7. Bh4 {[%clk 0:02:51]}  Bg4 {[%clk 0:02:59]} 8. Qc2 {[%clk 0:02:18]}  Nbd7 {[%clk 0:02:58]} 9. h3 {[%clk 0:02:06]}  Be6 {[%clk 0:02:54]} 10. Nge2 {[%clk 0:02:03]}  g5 {[%clk 0:02:53]} 11. Bg3 {[%clk 0:02:02]}  c6 {[%clk 0:02:47]} 12. Bh2 {[%clk 0:01:55]}  Nf8 {[%clk 0:02:44]} 13. Ng3 {[%clk 0:01:55]}  Ng6 {[%clk 0:02:44]} 14. Nf5 {[%clk 0:01:52]}  Bxf5 {[%clk 0:02:25]} 15. Qxf5 {[%clk 0:01:52]}  Nh4 {[%clk 0:02:26]} 16. Qc2 {[%clk 0:01:47]}  Bd6 {[%clk 0:02:26]} 17. Bxd6 {[%clk 0:01:14]}  Qxd6 {[%clk 0:02:27]} 18. O-O-O {[%clk 0:01:15]}  O-O-O {[%clk 0:02:22]} 19. g3 {[%clk 0:01:11]}  Ng6 {[%clk 0:02:22]} 20. Bd3 {[%clk 0:01:11]}  Ne7 {[%clk 0:02:21]} 21. h4 {[%clk 0:00:40]}  Kb8 {[%clk 0:02:17]} 22. Kb1 {[%clk 0:00:41]}  Nc8 {[%clk 0:02:12]} 23. hxg5 {[%clk 0:00:37]}  hxg5 {[%clk 0:02:12]} 24. Qe2 {[%clk 0:00:34]}  Qe6 {[%clk 0:02:09]} 25. Qf3 {[%clk 0:00:32]}  Nd6 {[%clk 0:02:07]} 26. Rxh8 {[%clk 0:00:30]}  Rxh8 {[%clk 0:02:08]} 27. Rh1 {[%clk 0:00:30]}  Rxh1+ {[%clk 0:02:06]} 28. Qxh1 {[%clk 0:00:31]}  Ng4 {[%clk 0:01:58]} 29. Qf3 {[%clk 0:00:26]}  f5 {[%clk 0:01:58]} 30. Qg2 {[%clk 0:00:23]}  Qh6 {[%clk 0:01:55]} 31. Be2 {[%clk 0:00:22]}  Nf6 {[%clk 0:01:55]} 32. Bd3 {[%clk 0:00:22]}  Qh5 {[%clk 0:01:44]} 33. Kc2 {[%clk 0:00:22]}  Nfe4 {[%clk 0:01:42]} 34. Nxe4 {[%clk 0:00:15]}  fxe4 {[%clk 0:01:43]} 35. Bf1 {[%clk 0:00:12]}  Kc7 {[%clk 0:01:37]} 36. g4 {[%clk 0:00:13]}  Qh4 {[%clk 0:01:31]} 37. Be2 {[%clk 0:00:13]}  b5 {[%clk 0:01:16]} 38. b3 {[%clk 0:00:08]}  a5 {[%clk 0:01:14]} 39. Kd1 {[%clk 0:00:07]}  Qh7 {[%clk 0:00:56]} 40. Kc2 {[%clk 0:00:04]}  Qh4 {[%clk 0:00:49]} 41. Kd1 {[%clk 0:00:04]}  b4 {[%clk 0:00:50]} 42. Kc2 {[%clk 0:00:03]}  Kd7 {[%clk 0:00:50]} 43. Kd2 {[%clk 0:00:03]}  Ke6 {[%clk 0:00:45]} 44. Kc2 {[%clk 0:00:04]}  Ne8 {[%clk 0:00:44]} 45. Kd2 {[%clk 0:00:04]}  Nf6 {[%clk 0:00:44]} 46. Kc2 {[%clk 0:00:04]}  Nd7 {[%clk 0:00:43]} 47. Kd2 {[%clk 0:00:03]}  c5 {[%clk 0:00:43]} 48. dxc5 {[%clk 0:00:04]}  Nxc5 {[%clk 0:00:43]} 49. Kc2 {[%clk 0:00:04]}  Qh8 {[%clk 0:00:38]} 50. Kb1 {[%clk 0:00:05]}  Qc3 {[%clk 0:00:36]} 51. Qh1 {[%clk 0:00:04]}  Nd3 {[%clk 0:00:26]} 52. Qh6+ {[%clk 0:00:02]}  Kd7 {[%clk 0:00:26]} 53. Qh7+ {[%clk 0:00:01]}  Kc6 {[%clk 0:00:26]} 54. Qg6+ {[%clk 0:00:01]}  Kc5 {[%clk 0:00:27]} 55. Bxd3 {[%clk 0:00:02]}  exd3 {[%clk 0:00:27]} 56. Qg7 {[%clk 0:00:00]}  Qc2+ {[%clk 0:00:26]} 0-1


[Site "https://www.chess.com"]